{"text_format":"3","workbook":"xlsx","n_sheets":3,"sheets":["Burden Hours","Gov Cost","Appendix B"],"not_rendered":{"defined_names":4},"read":"whole","date_system":"1900"}

{"sheet":"Burden Hours","index":0,"n_rows":102,"n_cols":15,"rows_kept":102,"merged":[[1,0,2,5],[1,7,2,11],[1,12,2,14],[3,7,4,11],[3,12,4,14],[7,1,7,5],[10,1,10,5],[11,1,11,5],[12,1,12,5],[13,1,13,5],[14,1,14,5],[15,1,15,5],[16,1,16,5],[17,1,17,5],[18,1,18,5],[19,1,19,5],[20,1,20,5],[21,1,21,5],[22,1,22,5],[23,1,23,5],[24,1,24,5],[25,1,25,5],[26,1,26,5],[27,1,27,5],[28,1,28,5],[29,1,29,5],[30,1,30,5],[31,1,31,5],[32,1,32,5],[33,1,33,5],[34,1,34,5],[35,1,35,5],[36,1,36,5],[37,1,37,5],[38,1,38,5],[39,1,39,5],[40,1,40,5],[41,1,41,5],[42,1,42,5],[43,1,43,5],[44,1,44,5],[45,1,45,5],[46,1,46,5],[47,1,47,5],[48,1,48,5],[49,1,49,5],[50,1,50,5],[51,1,51,5],[52,1,52,5],[53,1,53,5],[54,1,54,5],[55,1,55,5],[56,1,56,5],[57,1,57,5],[58,1,58,5],[59,1,59,5],[60,1,60,5],[61,1,61,5],[62,1,62,5],[63,1,63,5],[64,1,64,5],[65,1,65,5],[66,1,66,5],[67,1,67,5],[68,1,68,5],[69,1,69,5],[70,1,70,5],[71,1,71,5],[72,1,72,5],[73,1,73,5],[74,1,74,5],[75,1,75,5],[76,1,76,5],[77,1,77,5],[78,1,78,5],[79,1,79,5],[80,1,80,5],[81,1,81,5],[82,1,82,5],[83,1,83,5],[84,1,84,5],[85,1,85,5],[86,1,86,5],[87,1,87,5],[88,1,88,5],[89,1,89,5],[90,1,90,5],[91,1,91,5],[92,1,92,5],[93,1,93,5],[94,1,94,5],[95,1,95,5],[96,1,96,5],[97,1,97,5],[98,1,98,5],[99,1,99,5],[100,1,100,5],[101,0,101,7]]}
[]
["IDENTIFICATION OF REPORTING OR RECORDKEEPING REQUIREMENT",{"$nulls":6},"ANNUAL BURDEN"]
[]
[{"$nulls":7},"REPORTS",{"$nulls":4},"RECORDS"]
[]
[{"$nulls":14},"TOTAL"]
[{"$nulls":6},"FORMS NO (S)","NO. OF","NO OF","TOTAL ANNUAL","HOURS","TOTAL ","NO. OF ","ANNUAL ","RECORD-"]
["SECTION OF","DESCRIPTION",{"$nulls":4},"(If \"none\"","RESPONDENTS","RESPONSES","RESPONSES","PER  ","HOURS","RECORD-","HOURS PER","KEEPING HOURS"]
["REGS.",{"$nulls":5},"so state)",null,"PER ","(Col. D x E)","RESPONSE","(Col. F x G)","KEEPERS","RECORD-","(Col. I x J)"]
[{"$nulls":8},"RESPONDENT",{"$nulls":4},"KEEPER"]
["(A)","(B)",{"$nulls":4},"(C)","(D)","(E)","(F)","(G)","(H)","(I)","(J)","(K)"]
["B/BT1.1, 36CFR223.112","Revise or add payment units or subdivisions",{"$nulls":4},"FS-2400-9",50,{"v":2.1,"d":"2.10"},{"$f":"H12*I12","v":{"v":105,"d":"105.00"}},{"v":0.5,"d":"0.50"},{"$f":"J12*K12","v":{"v":52.5,"d":"52.50"}},0,{"v":0,"d":"0.000"},{"v":0,"d":"0.00"}]
["B2.41, 36CFR223.112","Adjust for Volume Deficit",{"$nulls":4},"FS-2400-9",10,{"v":1.1,"d":"1.10"},{"$f":"H13*I13","v":{"v":11,"d":"11.00"}},{"v":0.5,"d":"0.50"},{"$f":"J13*K13","v":{"v":5.5,"d":"5.50"}},null,null,{"v":0,"d":"0.00"}]
["B2.42, 36CFR223.112","Adjust for Excess Volume",{"$nulls":4},"FS-2400-9",10,{"v":1.1,"d":"1.10"},{"v":11,"d":"11.00"},{"v":0.5,"d":"0.50"},{"v":5.5,"d":"5.50"},null,null,{"v":0,"d":"0.00"}]
["B/BT3.34, 36CFR223.112","Emergency Rate Redetermination",{"$nulls":4},"FS-2400-9",10,{"v":2.7,"d":"2.70"},{"v":27,"d":"27.00"},{"v":1,"d":"1.00"},{"v":27,"d":"27.00"},null,null,{"v":0,"d":"0.00"}]
["B/BT3.41","B/BT3.41 Agreement to remove material not in A/AT2",{"$nulls":4},"FS-2400-9 or local form",30,{"v":4.8,"d":"4.80"},{"v":144,"d":"144.00"},{"v":0.5,"d":"0.50"},{"v":72,"d":"72.00"},null,null,{"v":0,"d":"0.00"}]
["B/BT4.218, B/BT5.212, B/BT6.67, B/BT7.41","Timber Purchaser's Request for Work & Cooperative Deposits",{"$nulls":4},"FS-2400-16",100,{"v":1.4,"d":"1.40"},{"v":140,"d":"140.00"},{"v":1,"d":"1.00"},{"v":140,"d":"140.00"},null,null,{"v":0,"d":"0.00"}]
["B/BT4.22, 36CFR223.49","Request temporary reduction of Downpayment",{"$nulls":4},"Letters",54,{"v":1,"d":"1.00"},{"v":54,"d":"54.00"},{"v":0.5,"d":"0.50"},{"v":27,"d":"27.00"},null,null,{"v":0,"d":"0.00"}]
["B/BT4.23; B4.24; BT4.24","Request refund of excess cash",{"$nulls":4},"Letters",{"v":1000,"d":"1,000"},{"v":2.2,"d":"2.20"},{"v":2200,"d":"2200.00"},{"v":0.5,"d":"0.50"},{"v":1100,"d":"1100.00"},null,null,{"v":0,"d":"0.00"}]
["B/BT4.3","Provide optional payment bond",{"$nulls":4},"FS-6500-12",500,{"v":1.7,"d":"1.70"},{"v":850,"d":"850.00"},{"v":1,"d":"1.00"},{"v":850,"d":"850.00"},null,null,{"v":0,"d":"0.00"}]
["B/BT4.31","Provide optional blanket payment bond",{"$nulls":4},"FS-6500-12a",500,{"v":1.4,"d":"1.40"},{"v":700,"d":"700.00"},{"v":1,"d":"1.00"},{"v":700,"d":"700.00"},null,null,{"v":0,"d":"0.00"}]
["B/BT4.32","Provide letter of credit in lieu of surety bond for optional payment bond.",{"$nulls":4},"None",300,{"v":1.9,"d":"1.90"},{"v":570,"d":"570.00"},{"v":1,"d":"1.00"},{"v":570,"d":"570.00"},null,null,{"v":0,"d":"0.00"}]
["B/BT5.1","Agree on location of temporary roads",{"$nulls":4},"Inspection Report",600,{"v":2.4,"d":"2.40"},{"v":1440,"d":"1440.00"},{"v":0.1,"d":"0.10"},{"v":144,"d":"144.00"},null,null,{"v":0,"d":"0.00"}]
["B/BT5.21, 36CFR223.112","Purchaser assume road survey & design work",{"$nulls":4},"FS-2400-9",10,{"v":1.1,"d":"1.10"},{"v":11,"d":"11.00"},{"v":0.5,"d":"0.50"},{"v":5.5,"d":"5.50"},null,null,{"v":0,"d":"0.00"}]
["B/BT5.21","Schedule for specified road construction",{"$nulls":4},"Optional FS-2400-67",558,{"v":1,"d":"1.00"},{"v":558,"d":"558.00"},{"v":0.5,"d":"0.50"},{"v":279,"d":"279.00"},null,null,{"v":0,"d":"0.00"}]
["B/BT5.212, 36CFR223.112","Purchaser assume construction staking work",{"$nulls":4},"FS-2400-9",20,{"v":2.8,"d":"2.80"},{"v":56,"d":"56.00"},{"v":0.5,"d":"0.50"},{"v":28,"d":"28.00"},null,null,{"v":0,"d":"0.00"}]
["B/BT5.22","Provide FS a written schedule of desired delivery dates for FS supplied materials.",{"$nulls":4},"Optional FS-2400-67",22,{"v":1,"d":"1.00"},{"v":22,"d":"22.00"},{"v":0.5,"d":"0.50"},{"v":11,"d":"11.00"},null,null,{"v":0,"d":"0.00"}]
["B/BT5.23","Agree to hauling on partially constructed roads.",{"$nulls":4},"Letters",55,{"v":1,"d":"1.00"},{"v":55,"d":"55.00"},{"v":0.1,"d":"0.10"},{"v":5.5,"d":"5.50"},null,null,{"v":0,"d":"0.00"}]
["B/BT5.251, 36CFR223.112","Agree to a variation in quantities.",{"$nulls":4},"FS-2400-9",500,{"v":1.4,"d":"1.40"},{"v":700,"d":"700.00"},{"v":0.5,"d":"0.50"},{"v":350,"d":"350.00"},null,null,{"v":0,"d":"0.00"}]
["B/BT5.252, 36CFR223.112","Agree to adjust specified road costs for physical change.",{"$nulls":4},"FS-2400-9",27,{"v":1,"d":"1.00"},{"v":27,"d":"27.00"},{"v":1,"d":"1.00"},{"v":27,"d":"27.00"},null,null,{"v":0,"d":"0.00"}]
["B/BT5.253, 36CFR223.112","Agree to design change",{"$nulls":4},"FS-2400-9",100,{"v":2.7,"d":"2.70"},{"v":270,"d":"270.00"},{"v":1,"d":"1.00"},{"v":270,"d":"270.00"},null,null,{"v":0,"d":"0.00"}]
["B/BT5.26, 36CFR223.112","Agree to alternate facilities",{"$nulls":4},"FS-2400-9",10,{"v":1.4,"d":"1.40"},{"v":14,"d":"14.00"},{"v":1,"d":"1.00"},{"v":14,"d":"14.00"},null,null,{"v":0,"d":"0.00"}]
["B/BT5.27","Request temporary credit for unamortized specified road construction cost.",{"$nulls":4},"Letters",10,{"v":1.4,"d":"1.40"},{"v":14,"d":"14.00"},{"v":0.3,"d":"0.30"},{"v":4.2,"d":"4.20"},null,null,{"v":0,"d":"0.00"}]
["B/BT5.3","Road maintenance plan between multiple commercial users.",{"$nulls":4},"None",10,{"v":1.7,"d":"1.70"},{"v":17,"d":"17.00"},{"v":1,"d":"1.00"},{"v":17,"d":"17.00"},null,null,{"v":0,"d":"0.00"}]
["B/BT5.3","Agree to permit hauling prior to completing pre-haul maintenance.",{"$nulls":4},"Letters",10,{"v":3.3,"d":"3.30"},{"v":33,"d":"33.00"},{"v":0.2,"d":"0.20"},{"v":6.6000000000000005,"d":"6.60"},null,null,{"v":0,"d":"0.00"}]
["B/BT5.3","Agree to revise road maintenance costs &/or deposits for alternate haul route.",{"$nulls":4},"FS-2400-9",50,{"v":1.3,"d":"1.30"},{"v":65,"d":"65.00"},{"v":0.5,"d":"0.50"},{"v":32.5,"d":"32.50"},null,null,{"v":0,"d":"0.00"}]
["B/BT6.1","Designate representatives in writing.",{"$nulls":4},"FS-2400-67 or Letter",1174,{"v":2.5,"d":"2.50"},{"v":2935,"d":"2935.00"},{"v":0.1,"d":"0.10"},{"v":293.5,"d":"293.50"},null,null,{"v":0,"d":"0.00"}]
["B/BT6.2","Request permission to establish a camp, quarry, borrow pit, storage or service area.",{"$nulls":4},"Letter or Free Permit",500,{"v":1.4,"d":"1.40"},{"v":700,"d":"700.00"},{"v":0.2,"d":"0.20"},{"v":140,"d":"140.00"},null,null,{"v":0,"d":"0.00"}]
["B/BT6.23","Record survey in appropriate county records.",{"$nulls":4},"None",10,{"v":1,"d":"1.00"},{"v":10,"d":"10.00"},{"v":1,"d":"1.00"},{"v":10,"d":"10.00"},null,null,{"v":0,"d":"0.00"}]
["B/BT6.24, 36CFR223.112","Agree to alternative methods or procedures.",{"$nulls":4},"Insp Report or FS-2400-9",10,{"v":2.9,"d":"2.90"},{"v":29,"d":"29.00"},{"v":0.1,"d":"0.10"},{"v":2.9000000000000004,"d":"2.90"},null,null,{"v":0,"d":"0.00"}]
["BT6.3","Request release of payment unit.",{"$nulls":4},"Letter or email",853,{"v":9.8,"d":"9.80"},{"v":8359.400000000001,"d":"8359.40"},{"v":0.2,"d":"0.20"},{"v":1671.8800000000003,"d":"1671.88"},null,null,{"v":0,"d":"0.00"}]
["B/BT6.31, B/BT7.1","Provide annual operating schedule of anticipated major activities.",{"$nulls":4},"Optional FS-2400-67",1174,{"v":2.5,"d":"2.50"},{"v":2935,"d":"2935.00"},{"v":1.6,"d":"1.60"},{"v":4696,"d":"4696.00"},null,null,{"v":0,"d":"0.00"}]
["B/BT6.311","Provide general operating plan within 60 days of award and revise as necessary.",{"$nulls":4},"Optional Form FS-2400-67",920,{"v":1.4,"d":"1.40"},{"v":1288,"d":"1288.00"},{"v":1.6,"d":"1.60"},{"v":2060.8,"d":"2060.80"},null,null,{"v":0,"d":"0.00"}]
["B/BT6.312  36CFR223.32","Provide annual plan of operation for road construction.",{"$nulls":4},"None",273,{"v":1,"d":"1.00"},{"v":273,"d":"273.00"},{"v":0.1,"d":"0.10"},{"v":27.3,"d":"27.30"},null,null,{"v":0,"d":"0.00"}]
["B/BT6.33","Agree to traffic control plan.",{"$nulls":4},"None",1174,{"v":2.5,"d":"2.50"},{"v":2935,"d":"2935.00"},{"v":0.5,"d":"0.50"},{"v":1467.5,"d":"1467.50"},null,null,{"v":0,"d":"0.00"}]
["40 CFR 112, B/BT6.341","Provide Spill Prevention Control and Countermeasures Plan.",{"$nulls":4},"None",145,{"v":1,"d":"1.00"},{"v":145,"d":"145.00"},{"v":2,"d":"2.00"},{"v":290,"d":"290.00"},null,null,{"v":0,"d":"0.00"}]
["B/BT6.35","Request approval to clean off road equipment on National Forest land.",{"$nulls":4},"Email or FAX",10,{"v":3.3,"d":"3.30"},{"v":33,"d":"33.00"},{"v":0.2,"d":"0.20"},{"v":6.6000000000000005,"d":"6.60"},null,null,{"v":0,"d":"0.00"}]
["B/BT6.36 & B/BT6.361","Written request to accept work.",{"$nulls":4},"Email, FAX or Letter",1174,{"v":12.3,"d":"12.30"},{"v":14440.2,"d":"14440.20"},{"v":0.2,"d":"0.20"},{"v":2888.0400000000004,"d":"2888.04"},null,null,{"v":0,"d":"0.00"}]
["B/BT6.41","Agree to alternative methods of felling and bucking.",{"$nulls":4},"Insp Report",75,{"v":1.9,"d":"1.90"},{"v":142.5,"d":"142.50"},{"v":0.1,"d":"0.10"},14.25,null,null,{"v":0,"d":"0.00"}]
["B/BT6/422","Agree to location of landings and skid trails",{"$nulls":4},"Insp Report",900,{"v":32.2,"d":"32.20"},{"v":28980.000000000004,"d":"28980.00"},{"v":0.1,"d":"0.10"},{"v":2898.0000000000005,"d":"2898.00"},null,null,{"v":0,"d":"0.00"}]
["B/BT6.423","Permit skidding on permanent roads.",{"$nulls":4},"Insp Report or Letter",29,{"v":1,"d":"1.00"},{"v":29,"d":"29.00"},{"v":0.1,"d":"0.10"},{"v":2.9000000000000004,"d":"2.90"},null,null,{"v":0,"d":"0.00"}]
["B/BT6.424","Permit pull-type arches and/or dozer blades wider than tractor width in partial cut units.",{"$nulls":4},"Insp Report",29,{"v":1,"d":"1.00"},{"v":29,"d":"29.00"},{"v":0.1,"d":"0.10"},{"v":2.9000000000000004,"d":"2.90"},null,null,{"v":0,"d":"0.00"}]
["B6.841 & C6.841","Route of Haul Map includes as part of annual operating schedule.  Agree to other routes.  Agree to locations for accountability checks.",{"$nulls":4},"None",321,{"v":2.5,"d":"2.50"},{"v":802.5,"d":"802.50"},{"v":0.3,"d":"0.30"},240.75,null,null,{"v":0,"d":"0.00"}]
["B/BT6.5","Agree to alternative streamcourse protection measures.",{"$nulls":4},"Insp Report",25,{"v":3.3,"d":"3.30"},{"v":82.5,"d":"82.50"},{"v":0.1,"d":"0.10"},8.25,null,null,{"v":0,"d":"0.00"}]
["B/BT6.61","Agree to alternative methods of treating trees felled into protected meadows",{"$nulls":4},"Insp Report",25,{"v":2.9,"d":"2.90"},{"v":72.5,"d":"72.50"},{"v":0.1,"d":"0.10"},7.25,null,null,{"v":0,"d":"0.00"}]
["B/BT6.64","Agree to alternative methods for controlling erosion on landings after completion of use.",{"$nulls":4},"Insp Report",75,{"v":2.2,"d":"2.20"},{"v":165,"d":"165.00"},{"v":0.1,"d":"0.10"},{"v":16.5,"d":"16.50"},null,null,{"v":0,"d":"0.00"}]
["B/BT6.65","Agree to alternative methods for controlling erosion on skid trails and fire lines.",{"$nulls":4},"Insp Report",166,{"v":1,"d":"1.00"},{"v":166,"d":"166.00"},{"v":0.1,"d":"0.10"},{"v":16.6,"d":"16.60"},null,null,{"v":0,"d":"0.00"}]
["B/BT6.66","Agree to alternative methods for controlling erosion before operations cease annually.",{"$nulls":4},"Insp Report",166,{"v":1,"d":"1.00"},{"v":166,"d":"166.00"},{"v":0.2,"d":"0.20"},{"v":33.2,"d":"33.20"},null,null,{"v":0,"d":"0.00"}]
["B6.81","Request FS perform additional scaling services.",{"$nulls":4},"None",10,{"v":1.2,"d":"1.20"},{"v":12,"d":"12.00"},{"v":0.5,"d":"0.50"},{"v":6,"d":"6.00"},null,null,{"v":0,"d":"0.00"}]
["BT6.81 or B6.84","Product Identification - Complete Load Receipt and attach to each load",{"$nulls":4},"FS Load Receipts",500,{"v":340,"d":"340.00"},{"v":170000,"d":"170000.00"},{"v":0.3,"d":"0.30"},{"v":51000,"d":"51000.00"},null,null,{"v":0,"d":"0.00"}]
["BT6.81, B6.842","Agree to waiver or adjustment of product identification requirements.",{"$nulls":4},"None",500,{"v":2.1,"d":"2.10"},{"v":1050,"d":"1050.00"},{"v":0.5,"d":"0.50"},{"v":525,"d":"525.00"},null,null,{"v":0,"d":"0.00"}]
["B6.811","Agree to written memorandum of agreement governing scaling at an alternative scaling location. ",{"$nulls":4},"None",25,{"v":1.6,"d":"1.60"},{"v":40,"d":"40.00"},{"v":0.5,"d":"0.50"},{"v":20,"d":"20.00"},null,null,{"v":0,"d":"0.00"}]
["B6.813","Request Contract Term Adjustment and/or out-of-pocket expenses for delayed or interrupted scaling services.",{"$nulls":4},"Letter",10,{"v":1.2,"d":"1.20"},{"v":12,"d":"12.00"},{"v":1,"d":"1.00"},{"v":12,"d":"12.00"},null,null,{"v":0,"d":"0.00"}]
["B6.814","Weighing Services Agreement",{"$nulls":4},"None",25,{"v":3.3,"d":"3.30"},{"v":82.5,"d":"82.50"},{"v":0.5,"d":"0.50"},41.25,null,null,{"v":0,"d":"0.00"}]
["B6.84","Accountability agreement when scaling is performed away from Sale Area.",{"$nulls":4},"None",321,{"v":2.5,"d":"2.50"},{"v":802.5,"d":"802.50"},{"v":1,"d":"1.00"},{"v":802.5,"d":"802.50"},null,null,{"v":0,"d":"0.00"}]
["B/BT6.9","Request contractors and subcontractors to provide access to FS to books and accounts to enable FS to obtain & analyze operating costs.",{"$nulls":4},"None",20,{"v":1.3,"d":"1.30"},{"v":26,"d":"26.00"},{"v":1,"d":"1.00"},{"v":26,"d":"26.00"},null,null,{"v":0,"d":"0.00"}]
["B/BT7.21","Agree to alternative fire precaution measures or equipment.",{"$nulls":4},"Letter or FS-2400-9",75,{"v":3.9,"d":"3.90"},{"v":292.5,"d":"292.50"},{"v":0.2,"d":"0.20"},{"v":58.5,"d":"58.50"},null,null,{"v":0,"d":"0.00"}]
["B/BT8.21, 36CFR223.46","Agree to contract term adjustment.",{"$nulls":4},"FS-2400-9,      FS-2400-10, FS-2400-11, or Letter",300,{"v":2.8,"d":"2.80"},{"v":840,"d":"840.00"},{"v":0.5,"d":"0.50"},{"v":420,"d":"420.00"},null,null,{"v":0,"d":"0.00"}]
["B/BT8.211, 36CFR223.112","Agree to additional contract term adjustment based on contractor demonstrating diligent performance in reconstruction processing facility.",{"$nulls":4},"FS-2400-9 or FS-2400-10, or Letter",10,{"v":1.2,"d":"1.20"},{"v":12,"d":"12.00"},{"v":0.5,"d":"0.50"},{"v":6,"d":"6.00"},null,null,{"v":0,"d":"0.00"}]
["B/BT8.212, 36CFR223.52","Agree to Market-Related Contract term Adjustment",{"$nulls":4},"FS-2400-9 or FS-2400-10, or Letter",100,{"v":2.7,"d":"2.70"},{"v":270,"d":"270.00"},{"v":1,"d":"1.00"},{"v":270,"d":"270.00"},null,null,{"v":0,"d":"0.00"}]
["B/BT8.22, 36CFR223.116","Cancel contract following catastrophic damage.",{"$nulls":4},"Letter",10,{"v":1.2,"d":"1.20"},{"v":12,"d":"12.00"},{"v":1,"d":"1.00"},{"v":12,"d":"12.00"},null,null,{"v":0,"d":"0.00"}]
["B/BT8.23 & B/BT8.231, 36CFR223.112, 36CFR225.115","Contract Term Extension",{"$nulls":4},"FS-2400-10",125,{"v":1.4,"d":"1.40"},{"v":175,"d":"175.00"},{"v":1.5,"d":"1.50"},{"v":262.5,"d":"262.50"},null,null,{"v":0,"d":"0.00"}]
["36CFR223.53, 36CFR223.112","Urgent Removal Extension (B/BT8.3)",{"$nulls":4},"FS-2400-10",10,{"v":2.4,"d":"2.40"},{"v":24,"d":"24.00"},{"v":2.5,"d":"2.50"},{"v":60,"d":"60.00"},null,null,{"v":0,"d":"0.00"}]
["B/BT8.31, 36CFR223.112","Contract modification for physical change.",{"$nulls":4},"FS-2400-9 or FS-2400-10",10,{"v":1.2,"d":"1.20"},{"v":12,"d":"12.00"},{"v":1,"d":"1.00"},{"v":12,"d":"12.00"},null,null,{"v":0,"d":"0.00"}]
["B/BT8.32, 36CFR223.112","Contract modification for catastrophe.",{"$nulls":4},"FS-2400-9 or FS-2400-10",60,{"v":1.2,"d":"1.20"},{"v":72,"d":"72.00"},{"v":2,"d":"2.00"},{"v":144,"d":"144.00"},null,null,{"v":0,"d":"0.00"}]
["B/BT8.33, 36CFR223.112, 36CFR223.113","Request one or more of the relief measures for a FS ordered delay or interruption of contractor's operations.  Modify contract.",{"$nulls":4},"None",145,{"v":1,"d":"1.00"},{"v":145,"d":"145.00"},{"v":2,"d":"2.00"},{"v":290,"d":"290.00"},null,null,{"v":0,"d":"0.00"}]
["B/BT8.341 & B/BT8.342, 36CFR223.112","Agree on replacement timber.",{"$nulls":4},"FS-2400-9 or FS-2400-10",50,{"v":1.4,"d":"1.40"},{"$f":"H77*I77","v":{"v":70,"d":"70.00"}},{"v":4,"d":"4.00"},{"$f":"J77*K77","v":{"v":280,"d":"280.00"}},null,null,{"v":0,"d":"0.00"}]
["B/BT8.342, 36CFR223.116","Request contract termination for FS ordered delay or interruption.",{"$nulls":4},"None",10,{"v":1.2,"d":"1.20"},{"v":12,"d":"12.00"},{"v":0.5,"d":"0.50"},{"v":6,"d":"6.00"},null,null,{"v":0,"d":"0.00"}]
["B/BT8.35, 36CFR223.40","Submit documentation of claimed out-of-pocket expenses.",{"$nulls":4},"Letter",145,{"v":1,"d":"1.00"},{"v":145,"d":"145.00"},{"v":4,"d":"4.00"},{"v":580,"d":"580.00"},null,null,{"v":0,"d":"0.00"}]
["B/BT8.36, 36CFR223.116","Request termination for market change.",{"$nulls":4},"Letter",10,{"v":1.2,"d":"1.20"},{"v":12,"d":"12.00"},{"v":0.5,"d":"0.50"},{"v":6,"d":"6.00"},null,null,{"v":0,"d":"0.00"}]
["B/BT8.4, 36CFR223.114","Agree to have third party acquire or assume contract.",{"$nulls":4},"FS-2400-12",10,{"v":1.1,"d":"1.10"},{"v":11,"d":"11.00"},{"v":2,"d":"2.00"},{"v":22,"d":"22.00"},null,null,{"v":0,"d":"0.00"}]
["B/BT8.63","All information and reports required under E.O. 11246 pertaining to nondescrimination in employment.",{"$nulls":4},"None",300,{"v":2.4,"d":"2.40"},{"v":720,"d":"720.00"},{"v":2,"d":"2.00"},{"v":1440,"d":"1440.00"},null,null,{"v":0,"d":"0.00"}]
["B/BT8.64","Provide certifications from subcontractors regarding debarment, suspension, ineligibility and voluntary exclusion when requested by FS.",{"$nulls":4},"FS-2400-14, AD-1047 and AD-1048",1539,{"v":2.2,"d":"2.20"},{"v":3385.8,"d":"3385.80"},{"v":0.5,"d":"0.50"},{"v":1692.9,"d":"1692.90"},null,null,{"v":0,"d":"0.00"}]
["B/BT9.1, 36CFR223.35","Provide Performance Bond",{"$nulls":4},"SF-25",1494,{"v":2.2,"d":"2.20"},{"v":3286.8,"d":"3286.80"},{"v":1,"d":"1.00"},{"v":3286.8,"d":"3286.80"},null,null,{"v":0,"d":"0.00"}]
["B/BT9.11","Request bond reduction",{"$nulls":4},"SF-25 or Letter",50,{"v":5.8,"d":"5.80"},{"v":290,"d":"290.00"},{"v":0.5,"d":"0.50"},{"v":145,"d":"145.00"},null,null,{"v":0,"d":"0.00"}]
["B/BT9.12","Irrevocable Letter of Credit provided in lieu of Surety Bond.",{"$nulls":4},"None",250,{"v":2.3,"d":"2.30"},{"v":575,"d":"575.00"},{"v":1,"d":"1.00"},{"v":575,"d":"575.00"},null,null,{"v":0,"d":"0.00"}]
["B/BT9.13","Request temporary reduction of performance bond.",{"$nulls":4},"Letter",20,{"v":1.4,"d":"1.40"},{"v":28,"d":"28.00"},{"v":0.5,"d":"0.50"},{"v":14,"d":"14.00"},null,null,{"v":0,"d":"0.00"}]
["B/BT9.2","Submit a written demand seeking the payment of money, adjustment or interpretation of contract terms, or other relief arising under or relating to the contract.",{"$nulls":4},"Letter",300,{"v":1.1,"d":"1.10"},{"v":330,"d":"330.00"},{"v":1,"d":"1.00"},{"v":330,"d":"330.00"},null,null,{"v":0,"d":"0.00"}]
["C/CT2.11#","Agree to timber subject to agreement",{"$nulls":4},"None",100,{"v":2.5,"d":"2.50"},{"v":250,"d":"250.00"},{"v":0.5,"d":"0.50"},{"v":125,"d":"125.00"}]
["C/CT4.212","Request temporary reduction of Downpayment",{"$nulls":4},"Letter",100,{"v":2.7,"d":"2.70"},{"v":270,"d":"270.00"},{"v":0.5,"d":"0.50"},{"v":135,"d":"135.00"}]
["C/CT5.12#, 36CFR223.112","Agree to changes in road use limitations",{"$nulls":4},"FS-2400-9 or FS-2400-10",29,{"v":1,"d":"1.00"},{"v":29,"d":"29.00"},{"v":0.5,"d":"0.50"},{"v":14.5,"d":"14.50"}]
["C/CT5.13#, 36CFR223.47","Agree to changes in road completion dates",{"$nulls":4},"Optional Form FS-2400-67",100,{"v":1.4,"d":"1.40"},{"v":140,"d":"140.00"},{"v":0.5,"d":"0.50"},{"v":70,"d":"70.00"}]
["C/CT5.13#, 36CFR223.47, 36CFR223.112","Request Rate Redetermination for FS delay in completing specified roads",{"$nulls":4},"FS-2400-9",14,{"v":1,"d":"1.00"},{"v":14,"d":"14.00"},{"v":0.5,"d":"0.50"},{"v":7,"d":"7.00"}]
["C/CT5.213#, 36CFR223.112","Agree to different schedule for FS engineering services",{"$nulls":4},"FS-2400-9",27,{"v":1,"d":"1.00"},{"v":27,"d":"27.00"},{"v":0.5,"d":"0.50"},{"v":13.5,"d":"13.50"}]
["C/CT5.221#, 36CFR223.112","Agree to alternative rock sources",{"$nulls":4},"FS-2400-9",27,{"v":1,"d":"1.00"},{"v":27,"d":"27.00"},{"v":0.5,"d":"0.50"},{"v":13.5,"d":"13.50"}]
["C/CT5.32#, 36CFR223.112","Agree to adjustments in road maintenance deposit rates",{"$nulls":4},"FS-2400-9",100,{"v":1.4,"d":"1.40"},{"v":140,"d":"140.00"},{"v":0.5,"d":"0.50"},{"v":70,"d":"70.00"}]
["C6.816#","Agree to alternative deposit schedule for scaling services",{"$nulls":4},"Optional Form FS-2400-67",10,{"v":1.2,"d":"1.20"},{"v":12,"d":"12.00"},{"v":0.5,"d":"0.50"},{"v":6,"d":"6.00"}]
["C/CT8.73","Upon request furnish all records sufficient to verify eligibility and compliance with SBA program.",{"$nulls":4},"None",125,{"v":2.1,"d":"2.10"},{"v":262.5,"d":"262.50"},{"v":1,"d":"1.00"},{"v":262.5,"d":"262.50"},null,null,{"v":0,"d":"0.00"}]
[null,"Acknowledge receipt of inspection report including agreements contained therein- signature on FS completed form.",{"$nulls":4},"Regional Inspection Reports",1539,{"v":44.1,"d":"44.10"},{"v":67869.90000000001,"d":"67869.90"},{"v":0.1,"d":"0.10"},{"v":6786.990000000002,"d":"6786.99"},null,null,{"v":0,"d":"0.00"}]
["36CFR223.111, 36CFR223.112","Request relief in designated disaster areas.",{"$nulls":4},"FS-2400-9,   FS-2400-10 or Letter",10,{"v":1,"d":"1.00"},{"v":10,"d":"10.00"},{"v":0.5,"d":"0.50"},{"v":5,"d":"5.00"},null,null,{"v":0,"d":"0.00"}]
["Limited Liability Agreements","Limited liability agreement",{"$nulls":4},"None",20,{"v":1.4,"d":"1.40"},{"v":28,"d":"28.00"},{"v":0.5,"d":"0.50"},{"v":14,"d":"14.00"},null,null,{"v":0,"d":"0.00"}]
["TOTAL",{"$nulls":8},{"$f":"SUM(J13:J101)","v":{"v":324531.1,"d":"324,531.10"}},null,{"$f":"SUM(L13:L101)","v":{"v":91354.86,"d":"91,354.86"}},null,{"v":3391,"d":"3,391.00"},0]

{"sheet":"Gov Cost","index":1,"n_rows":101,"n_cols":12,"rows_kept":101,"merged":[[49,0,50,0],[49,2,50,2],[49,3,50,3],[49,4,50,4],[49,5,50,5],[49,6,50,6],[49,7,50,7],[49,8,50,8],[49,9,50,9],[49,10,50,10],[49,11,50,11]]}
["Description of Collection Activity                          (Refer to Appendix B for more detail)","Contract Provision and/or CFR Requiring  Information Collection","Request, Notice, Agreement, or Other","Form #","Contract Types With Information Collection","Total # of Contracts ","% Annual Occurrence by Contract Types","Total Annual Responses","Estimated Government Burden Hours/Response","Total Govt. Annual Burden Hours","Cost/ Hour *","Estimated Annual Government Cost"]
["Revise or add payment units or subdivisions.","B/BT1.1, 36CFR223.112","Agreement","FS-2400-9","3T, 6T, 13T",2080,0.05,{"$f":"(G2*F2)","v":104},0.5,{"$f":"I2*H2","v":{"v":52,"d":"52.0"}},{"v":32.73,"d":"$32.73"},{"$f":"K2*J2","v":{"v":1701.9599999999998,"d":"$1,701.96"}}]
["Adjustment for Volume Deficit","B2.41, 36CFR223.112","Agreement","FS-2400-9","6/6T, 13/13T",2729,0.004,{"v":10.916,"d":"11"},0.5,{"v":5.458,"d":"5.5"},{"v":32.73,"d":"$32.73"},{"$f":"K3*J3","v":{"v":178.64033999999998,"d":"$178.64"}}]
["Adjustment for Excess Volume","B2.42, 36CFR223.112","Agreement","FS-2400-9","6/6T, 13/13T",2729,0.004,{"v":10.916,"d":"11"},0.5,{"v":5.458,"d":"5.5"},{"v":32.73,"d":"$32.73"},{"v":178.64033999999998,"d":"$178.64"}]
["Emergency Rate Redetermination","B/BT3.34, 36CFR223.112","Agreement","FS-2400-9","6/6T, 13/13T",2729,0.01,{"v":27.29,"d":"27"},4,{"v":109.16,"d":"109.2"},{"v":32.73,"d":"$32.73"},{"v":3572.8067999999994,"d":"$3,572.81"}]
["B/BT3.41 Agreement to remove material not in A/AT2","B/BT3.41","Agreement","FS-2400-9 or Local Form","All but 2 & 4",2898,0.05,{"v":144.9,"d":"145"},0.5,{"v":72.45,"d":"72.5"},{"v":32.73,"d":"$32.73"},{"v":2371.2884999999997,"d":"$2,371.29"}]
["Timber Purchaser's Request for Work & Cooperative Deposits","B/BT4.218, B/BT5.212, B/BT6.67, B/BT7.41","Agreement","FS-2400-16","All but 2 & 4",2898,0.05,{"v":144.9,"d":"145"},2,289.8,{"v":32.73,"d":"$32.73"},{"v":9485.153999999999,"d":"$9,485.15"}]
["Request temporary reduction of Downpayment","B/BT4.22, 36CFR223.49","Request ","Letters","3/3T, 6/6T ",2683,0.02,{"v":53.660000000000004,"d":"54"},1,{"v":53.660000000000004,"d":"53.7"},{"v":32.73,"d":"$32.73"},{"v":1756.2918,"d":"$1,756.29"}]
["Request refund of excess cash","B/BT4.23; B4.24; BT4.24","Request ","Letters","All",2977,0.75,{"v":2232.75,"d":"2233"},0.5,{"v":1116.375,"d":"1116.4"},{"v":24.86,"d":"$24.86"},{"v":27753.0825,"d":"$27,753.08"}]
["Provide optional payment bond","B/BT4.3","Other","FS-6500-12","All but 2 & 4",2898,0.3,{"v":869.4,"d":"869"},1,869.4,{"v":32.73,"d":"$32.73"},{"v":28455.461999999996,"d":"$28,455.46"}]
["Provide optional blanket payment bond","B/BT4.31","Other","FS-6500-12a","All but 2 & 4",2898,0.25,{"v":724.5,"d":"725"},1,724.5,{"v":32.73,"d":"$32.73"},{"v":23712.885,"d":"$23,712.89"}]
["Provide letter of credit in lieu of surety bond for optional payment bond.","B/BT4.32","Other","None","All but 2 & 4",2898,0.2,{"v":579.6,"d":"580"},1,579.6,{"v":32.73,"d":"$32.73"},{"v":18970.307999999997,"d":"$18,970.31"}]
["Agree on location of temporary roads","B/BT5.1","Agreement","Inspection Report","All but 2 & 4",2898,0.5,1449,0.1,144.9,{"v":24.86,"d":"$24.86"},{"v":3602.214,"d":"$3,602.21"}]
["Purchaser assume road survey & design work","B/BT5.21, 36CFR223.112","Agreement","FS-2400-9","6/6T, 13/13T w/ Spec Rds",1116,0.01,{"v":11.16,"d":"11"},0.5,{"v":5.58,"d":"5.6"},{"v":32.73,"d":"$32.73"},{"v":182.6334,"d":"$182.63"}]
["Schedule for specified road construction","B/BT5.21","Plan","Optional FS-2400-67","6/6T, 13/13T w/ Spec Rds",1116,0.5,558,0.5,{"v":279,"d":"279.0"},{"v":24.86,"d":"$24.86"},{"v":6935.94,"d":"$6,935.94"}]
["Purchaser assume construction staking work","B/BT5.212, 36CFR223.112","Agreement","FS-2400-9","6/6T, 13/13T w/ Spec Rds",1116,0.05,{"v":55.800000000000004,"d":"56"},0.5,{"v":27.900000000000002,"d":"27.9"},{"v":32.73,"d":"$32.73"},{"v":913.167,"d":"$913.17"}]
["Provide FS a written schedule of desired delivery dates for FS supplied materials.","B/BT5.22","Notice","Optional FS2400-67","6/6T, 13/13T w/ Spec Rds",1116,0.02,{"v":22.32,"d":"22"},0.5,{"v":11.16,"d":"11.2"},{"v":24.86,"d":"$24.86"},{"v":277.4376,"d":"$277.44"}]
["Agree to hauling on partially constructed roads.","B/BT5.23","Agreement","Letters","6/6T, 13/13T",2729,0.02,{"v":54.58,"d":"55"},0.5,{"v":27.29,"d":"27.3"},{"v":32.73,"d":"$32.73"},{"v":893.2016999999998,"d":"$893.20"}]
["Agree to a variation in quantities.","B/BT5.251, 36CFR223.112","Agreement","FS-2400-9","6/6T, 13/13T",2729,0.25,{"v":682.25,"d":"682"},0.5,{"v":341.125,"d":"341.1"},{"v":32.73,"d":"$32.73"},{"v":11165.02125,"d":"$11,165.02"}]
["Agree to adjust specified road costs for physical change.","B/BT5.252, 36CFR223.112","Agreement","FS-2400-9","6/6T, 13/13T",2729,0.01,{"v":27.29,"d":"27"},1,{"v":27.29,"d":"27.3"},{"v":32.73,"d":"$32.73"},{"v":893.2016999999998,"d":"$893.20"}]
["Agree to design change","B/BT5.253, 36CFR223.112","Agreement","FS-2400-9","6/6T, 13/13T",2729,0.1,{"v":272.90000000000003,"d":"273"},1,{"v":272.90000000000003,"d":"272.9"},{"v":32.73,"d":"$32.73"},{"v":8932.017,"d":"$8,932.02"}]
["Agree to alternate facilities","B/BT5.26, 36CFR223.112","Agreement","FS-2400-9","6/6T, 13/13T",2729,0.005,{"v":13.645,"d":"14"},1,{"v":13.645,"d":"13.6"},{"v":32.73,"d":"$32.73"},{"v":446.6008499999999,"d":"$446.60"}]
["Request temporary credit for unamortized specified road construction cost.","B/BT5.27","Request ","Letters","6/6T, 13/13T",2729,0.005,{"v":13.645,"d":"14"},0.5,{"v":6.8225,"d":"6.8"},{"v":32.73,"d":"$32.73"},{"v":223.30042499999996,"d":"$223.30"}]
["Road maintenance plan between multiple commercial users.","B/BT5.3","Agreement","None","All but 2",3315,0.005,{"v":16.575,"d":"17"},0.5,{"v":8.2875,"d":"8.3"},{"v":32.73,"d":"$32.73"},{"v":271.249875,"d":"$271.25"}]
["Agree to permit hauling prior to completing pre-haul maintenance.","B/BT5.3","Agreement","Letters","All but 2",3315,0.01,{"v":33.15,"d":"33"},0.5,{"v":16.575,"d":"16.6"},{"v":32.73,"d":"$32.73"},{"v":542.49975,"d":"$542.50"}]
["Agree to revise road maintenance costs &/or deposits for alternate haul route.","B/BT5.3","Agreement","FS-2400-9","All but 2",3315,0.02,{"v":66.3,"d":"66"},0.5,{"v":33.15,"d":"33.2"},{"v":32.73,"d":"$32.73"},{"v":1084.9995,"d":"$1,085.00"}]
["Designate representatives in writing.","B/BT6.1","Plan","FS-2400-67 or Letter","All but 2 & 4",2898,1,2898,0.1,289.8,{"v":32.73,"d":"$32.73"},{"v":9485.153999999999,"d":"$9,485.15"}]
["Request permission to establish a camp, quarry, borrow pit, storage or service area.","B/BT6.2","Request ","Letter or Free Permit","All but 2 & 4",2898,0.25,{"v":724.5,"d":"725"},0.5,{"v":362.25,"d":"362.3"},{"v":24.86,"d":"$24.86"},{"v":9005.535,"d":"$9,005.54"}]
["Record survey in appropriate county records.","B/BT6.23","Other","None","All but 2",3315,0.003,{"v":9.945,"d":"10"},0.5,{"v":4.9725,"d":"5.0"},{"v":24.86,"d":"$24.86"},{"v":123.61635,"d":"$123.62"}]
["Agree to alternative methods or procedures.","B/BT6.24, 36CFR223.112","Agreement","Insp Report or FS-2400-9","All but 2 & 4",2898,0.01,{"v":28.98,"d":"29"},0.1,{"v":2.898,"d":"2.9"},{"v":24.86,"d":"$24.86"},{"v":72.04428,"d":"$72.04"}]
["Request release of payment unit.","BT6.3","Request ","Letter or email","3T, 6T, 13T",2080,4,8320,0.5,{"v":4160,"d":"4160.0"},{"v":24.86,"d":"$24.86"},{"v":103417.59999999999,"d":"$103,417.60"}]
["Provide annual operating schedule of anticipated major activities.","B/BT6.31, B/BT7.1","Plan","Optional FS-2400-67","All but 2 & 4",2898,1,2898,0.5,{"v":1449,"d":"1449.0"},{"v":24.86,"d":"$24.86"},{"v":36022.14,"d":"$36,022.14"}]
["Provide general operating plan within 60 days of award and revise as necessary.","B/BT6.311","Plan","Optional Form FS-2400-67","6/6T ",2514,0.5,1257,0.5,628.5,{"v":32.73,"d":"$32.73"},{"v":20570.804999999997,"d":"$20,570.81"}]
["Provide annual plan of operation for road construction.","B/BT6.312  36CFR223.32","Plan","None","6/6T, 13/13T",2729,0.1,{"v":272.90000000000003,"d":"273"},0.1,{"v":27.290000000000006,"d":"27.3"},{"v":32.73,"d":"$32.73"},{"v":893.2017000000001,"d":"$893.20"}]
["Agree to traffic control plan.","B/BT6.33","Plan","None","All but 2 & 4",2898,1,2898,0.5,{"v":1449,"d":"1449.0"},{"v":24.86,"d":"$24.86"},{"v":36022.14,"d":"$36,022.14"}]
["Provide Spill Prevention Control and Countermeasures Plan.","40 CFR 112, B/BT6.341","Plan","None","All but 2 & 4",2898,0.05,{"v":144.9,"d":"145"},0.5,{"v":72.45,"d":"72.5"},{"v":32.73,"d":"$32.73"},{"v":2371.2884999999997,"d":"$2,371.29"}]
["Request approval to clean off road equipment on National Forest land.","B/BT6.35","Request ","Email or FAX","All but 2",3315,0.01,{"v":33.15,"d":"33"},0.5,{"v":16.575,"d":"16.6"},{"v":24.86,"d":"$24.86"},{"v":412.05449999999996,"d":"$412.05"}]
["Written request to accept work.","B/BT6.36 & B/BT6.361","Request ","Email, FAX or Letter","All but 2 & 4",2898,5,14490,0.1,{"v":1449,"d":"1449.0"},{"v":24.86,"d":"$24.86"},{"v":36022.14,"d":"$36,022.14"}]
["Agree to alternative methods of felling and bucking.","B/BT6.41","Agreement ","Insp Report","All but 2 & 4",2898,0.05,{"v":144.9,"d":"145"},0.1,{"v":14.490000000000002,"d":"14.5"},{"v":24.86,"d":"$24.86"},{"v":360.2214,"d":"$360.22"}]
["Agree to location of landings and skid trails","B/BT6/422","Agreement","Insp Report","All but 2 & 4",2898,10,28980,0.1,{"v":2898,"d":"2898.0"},{"v":24.86,"d":"$24.86"},{"v":72044.28,"d":"$72,044.28"}]
["Permit skidding on permanent roads.","B/BT6.423","Agreement","Insp Report or Letter","All but 2 & 4",2898,0.01,{"v":28.98,"d":"29"},0.1,{"v":2.898,"d":"2.9"},{"v":24.86,"d":"$24.86"},{"v":72.04428,"d":"$72.04"}]
["Permit pull-type arches and/or dozer blades wider than tractor width in partial cut units.","B/BT6.424","Agreement","Insp Report","All but 2 & 4",2898,0.01,{"v":28.98,"d":"29"},0.1,{"v":2.898,"d":"2.9"},{"v":24.86,"d":"$24.86"},{"v":72.04428,"d":"$72.04"}]
["Route of Haul Map includes as part of annual operating schedule.  Agree to other routes.  Agree to locations for accountability checks.","B6.841 & C6.841","Other","None","3, 6, 13",818,1,818,0.1,{"v":81.80000000000001,"d":"81.8"},{"v":24.86,"d":"$24.86"},{"v":2033.5480000000002,"d":"$2,033.55"}]
["Agree to alternative streamcourse protection measures.","B/BT6.5","Agreement","Insp Report","All but 2",3315,0.025,{"v":82.875,"d":"83"},0.1,{"v":8.2875,"d":"8.3"},{"v":24.86,"d":"$24.86"},{"v":206.02724999999998,"d":"$206.03"}]
["Agree to alternative methods of treating trees felled into protected meadows","B/BT6.61","Agreement","Insp Report","All but 2 & 4",2898,0.025,{"v":72.45,"d":"72"},0.1,{"v":7.245000000000001,"d":"7.2"},{"v":24.86,"d":"$24.86"},{"v":180.1107,"d":"$180.11"}]
["Agree to alternative methods for controlling erosion on landings after completion of use.","B/BT6.64","Agreement","Insp Report","All but 2",3315,0.05,{"v":165.75,"d":"166"},0.1,{"v":16.575,"d":"16.6"},{"v":24.86,"d":"$24.86"},{"v":412.05449999999996,"d":"$412.05"}]
["Agree to alternative methods for controlling erosion on skid trails and fire lines.","B/BT6.65","Agreement","Insp Report","All but 2",3315,0.05,{"v":165.75,"d":"166"},0.1,{"v":16.575,"d":"16.6"},{"v":24.86,"d":"$24.86"},{"v":412.05449999999996,"d":"$412.05"}]
["Agree to alternative methods for controlling erosion before operations cease annually.","B/BT6.66","Agreement","Insp Report","All but 2",3315,0.05,{"v":165.75,"d":"166"},0.2,{"v":33.15,"d":"33.2"},{"v":24.86,"d":"$24.86"},{"v":824.1089999999999,"d":"$824.11"}]
["Request FS perform additional scaling services.","B6.81","Agreement","None","3, 6, 13",818,0.015,{"v":12.27,"d":"12"},0.5,{"v":6.135,"d":"6.1"},{"v":32.73,"d":"$32.73"},{"v":200.79854999999998,"d":"$200.80"}]
["Product Identification - Complete Load Receipt & attach to each load","BT6.81","Other","FS Load Receipts","All west of 100th meridian",2142,79.4,170000,0.025,{"v":4250,"d":"4250.0"},{"v":22.57,"d":"$22.57"},{"$f":"K50*J50","v":{"v":95922.5,"d":"$95,922.50"}}]
[null,"B6.84"]
["Agree to waiver or adjustment of product identification requirements.","BT6.81, B6.842","Agreement","None","All west of 100th meridian",2142,0.5,{"$f":"(G52*F52)","v":1071},0.5,{"$f":"I52*H52","v":535.5},{"v":32.73,"d":"$32.73"},{"$f":"K52*J52","v":{"v":17526.914999999997,"d":"$17,526.92"}}]
["Agree to written memorandum of agreement governing scaling at an alternative scaling location. ","B6.811","Agreement","None","3, 6, 13",818,0.05,{"v":40.900000000000006,"d":"41"},0.5,{"v":20.450000000000003,"d":"20.5"},{"v":32.73,"d":"$32.73"},{"v":669.3285000000001,"d":"$669.33"}]
["Request Contract Term Adjustment and/or out-of-pocket expenses for delayed or interrupted scaling services.","B6.813","Request ","Letter","3, 6, 13",818,0.015,{"v":12.27,"d":"12"},1,{"v":12.27,"d":"12.3"},{"v":32.73,"d":"$32.73"},{"v":401.59709999999995,"d":"$401.60"}]
["Weighing Services Agreement","B6.814","Agreement","None","3, 6, 13",818,0.1,{"v":81.80000000000001,"d":"82"},0.5,{"v":40.900000000000006,"d":"40.9"},{"v":32.73,"d":"$32.73"},{"v":1338.6570000000002,"d":"$1,338.66"}]
["Accountability agreement when scaling is performed away from Sale Area.","B6.84","Agreement","None","3, 6, 13",818,1,818,1,{"v":818,"d":"818.0"},{"v":32.73,"d":"$32.73"},{"v":26773.139999999996,"d":"$26,773.14"}]
["Request contractors and subcontractors to provide access to FS to books and accounts to enable FS to obtain & analyze operating costs.","B/BT6.9","Request ","None","3/3T, 6/6T ",2683,0.01,{"v":26.830000000000002,"d":"27"},1,{"v":26.830000000000002,"d":"26.8"},{"v":32.73,"d":"$32.73"},{"v":878.1459,"d":"$878.15"}]
["Agree to alternative fire precaution measures or equipment.","B/BT7.21","Agreement","Letter or FS-2400-9","All but 2 & 4",2898,0.1,{"v":289.8,"d":"290"},0.2,{"v":57.96000000000001,"d":"58.0"},{"v":24.86,"d":"$24.86"},{"v":1440.8856,"d":"$1,440.89"}]
["Agree to contract term adjustment.","B/BT8.21, 36CFR223.46","Agreement","FS-2400-9,      FS-2400-10, FS-2400-11, or Letter","All   ",3394,0.25,{"v":848.5,"d":"849"},0.5,{"v":424.25,"d":"424.3"},{"v":32.73,"d":"$32.73"},{"v":13885.7025,"d":"$13,885.70"}]
["Agree to additional contract term adjustment based on contractor demonstrating diligent performance in reconstruction processing facility.","B/BT8.211, 36CFR223.112","Agreement","FS-2400-9 or FS-2400-10, or Letter","All but 2 & 4",2898,0.004,{"v":11.592,"d":"12"},0.5,{"v":5.796,"d":"5.8"},{"v":32.73,"d":"$32.73"},{"v":189.70308,"d":"$189.70"}]
["Agree to Market-Related Contract term Adjustment","B/BT8.212, 36CFR223.52","Agreement","FS-2400-9 or FS-2400-10, or Letter","6/6T, 13/13T",2729,0.1,{"v":272.90000000000003,"d":"273"},1,{"v":272.90000000000003,"d":"272.9"},{"v":32.73,"d":"$32.73"},{"v":8932.017,"d":"$8,932.02"}]
["Cancel contract following catastrophic damage.","B/BT8.22, 36CFR223.116","Agreement","Letter","All but 2 & 4",2898,0.004,{"v":11.592,"d":"12"},1,{"v":11.592,"d":"11.6"},{"v":32.73,"d":"$32.73"},{"v":379.40616,"d":"$379.41"}]
["Contract Term Extension","B/BT8.23 & B/BT8.231, 36CFR223.112, 36CFR225.115","Agreement","FS-2400-10","All",3394,0.05,{"v":169.70000000000002,"d":"170"},3,509.1,{"v":32.73,"d":"$32.73"},{"v":16662.843,"d":"$16,662.84"}]
["Urgent Removal Extension (B/BT8.3)","36CFR223.53, 36CFR223.112","Agreement","FS-2400-10","All",3394,0.003,{"v":10.182,"d":"10"},1,{"v":10.182,"d":"10.2"},{"v":32.73,"d":"$32.73"},{"v":333.25685999999996,"d":"$333.26"}]
["Contract modification for physical change.","B/BT8.31, 36CFR223.112","Agreement","FS-2400-9 or FS-2400-10","All but 2 & 4",2898,0.004,{"v":11.592,"d":"12"},1,{"v":11.592,"d":"11.6"},{"v":32.73,"d":"$32.73"},{"v":379.40616,"d":"$379.41"}]
["Contract modification for catastrophe.","B/BT8.32, 36CFR223.112","Agreement","FS-2400-9 or FS-2400-10","All but 2 & 4",2898,0.025,{"v":72.45,"d":"72"},2,144.9,{"v":32.73,"d":"$32.73"},{"v":4742.576999999999,"d":"$4,742.58"}]
["Request one or more of the relief measures for a FS ordered delay or interruption of contractor's operations.  Modify contract.","B/BT8.33, 36CFR223.112, 36CFR223.113","Request ","None","All but 2 & 4",2898,0.05,{"v":144.9,"d":"145"},2,289.8,{"v":32.73,"d":"$32.73"},{"v":9485.153999999999,"d":"$9,485.15"}]
["Agree on replacement timber.","B/BT8.341 & B/BT8.342, 36CFR223.112","Agreement","FS-2400-9 or FS-2400-10","All but 2 & 4",2898,0.025,{"v":72.45,"d":"72"},4,289.8,{"v":32.73,"d":"$32.73"},{"v":9485.153999999999,"d":"$9,485.15"}]
["Request contract termination for FS ordered delay or interruption.","B/BT8.342, 36CFR223.116","Request ","None","All but 2 & 4",2898,0.004,{"v":11.592,"d":"12"},0.5,{"v":5.796,"d":"5.8"},{"v":32.73,"d":"$32.73"},{"v":189.70308,"d":"$189.70"}]
["Submit documentation of claimed out-of-pocket expenses.","B/BT8.35, 36CFR223.40","Request ","Letter","All but 2 & 4",2898,0.05,{"v":144.9,"d":"145"},4,579.6,{"v":32.73,"d":"$32.73"},{"v":18970.307999999997,"d":"$18,970.31"}]
["Request termination for market change.","B/BT8.36, 36CFR223.116","Request ","Letter","All but 2 & 4",2898,0.004,{"v":11.592,"d":"12"},0.5,{"v":5.796,"d":"5.8"},{"v":32.73,"d":"$32.73"},{"v":189.70308,"d":"$189.70"}]
["Agree to have third party acquire or assume contract.","B/BT8.4, 36CFR223.114","Agreement","FS-2400-12","6/6T, 13/13T",2729,0.004,{"v":10.916,"d":"11"},2,{"v":21.832,"d":"21.8"},{"v":32.73,"d":"$32.73"},{"v":714.5613599999999,"d":"$714.56"}]
["All information and reports required under E.O. 11246 pertaining to nondescrimination in employment.","B/BT8.63","Other","None","All but 2 & 4",2898,0.25,{"v":724.5,"d":"725"},0.5,{"v":362.25,"d":"362.3"},{"v":24.86,"d":"$24.86"},{"v":9005.535,"d":"$9,005.54"}]
["Provide certifications from subcontractors regarding debarment, suspension, ineligibility and voluntary exclusion when requested by FS.","B/BT8.64","Other","FS-2400-14, AD-1047 and AD-1048","All",3394,1,3394,0.5,{"v":1697,"d":"1697.0"},{"v":24.86,"d":"$24.86"},{"v":42187.42,"d":"$42,187.42"}]
["Provide Performance Bond","B/BT9.1, 36CFR223.35","Other","SF-25","All but 2",3315,1,3315,0.5,1657.5,{"v":32.73,"d":"$32.73"},{"v":54249.97499999999,"d":"$54,249.98"}]
["Request bond reduction","B/BT9.11","Request ","SF-25 or Letter","All but 2 & 4",2898,0.1,{"v":289.8,"d":"290"},0.5,144.9,{"v":32.73,"d":"$32.73"},{"v":4742.576999999999,"d":"$4,742.58"}]
["Irrevocable Letter of Credit provided in lieu of Surety Bond.","B/BT9.12","Other","None","All but 2 & 4",2898,0.2,{"v":579.6,"d":"580"},1,579.6,{"v":32.73,"d":"$32.73"},{"v":18970.307999999997,"d":"$18,970.31"}]
["Request temporary reduction of performance bond.","B/BT9.13","Request ","Letter","All but 2 & 4",2898,0.01,{"v":28.98,"d":"29"},0.5,{"v":14.49,"d":"14.5"},{"v":32.73,"d":"$32.73"},{"v":474.25769999999994,"d":"$474.26"}]
["Submit a written demand seeking the payment of money, adjustment or interpretation of contract terms, or other relief arising under or relating to the contract.","B/BT9.2","Request ","Letter","All",3394,0.1,{"v":339.40000000000003,"d":"339"},1,{"v":339.40000000000003,"d":"339.4"},{"v":32.73,"d":"$32.73"},{"v":11108.562,"d":"$11,108.56"}]
["Agree to remove timber subject to agreement","C/CT2.11#","Agreement","None","All",3394,0.075,{"v":254.54999999999998,"d":"255"},0.5,{"v":127.27499999999999,"d":"127.3"},{"v":24.86,"d":"$24.86"},{"v":3164.0564999999997,"d":"$3,164.06"}]
["Request temporary reduction of Downpayment","C/CT4.212","Request ","Letter","3/3T, 6/6T ",2683,0.1,{"v":268.3,"d":"268"},0.5,{"v":134.15,"d":"134.2"},{"v":32.73,"d":"$32.73"},{"v":4390.7294999999995,"d":"$4,390.73"}]
["Agree to changes in road use limitations","C/CT5.12#, 36CFR223.112","Agreement","FS-2400-9 or FS-2400-10","All but 2 & 4",2898,0.01,{"v":28.98,"d":"29"},0.5,{"v":14.49,"d":"14.5"},{"v":32.73,"d":"$32.73"},{"v":474.25769999999994,"d":"$474.26"}]
["Agree to changes in road completion dates","C/CT5.13#, 36CFR223.47","Agreement","Optional Form FS-2400-67 or other","6/6T, 13/13T",2729,0.05,{"v":136.45000000000002,"d":"136"},0.5,{"v":68.22500000000001,"d":"68.2"},{"v":32.73,"d":"$32.73"},{"v":2233.00425,"d":"$2,233.00"}]
["Request Rate Redetermination for FS delay in completing specified roads.","C/CT5.13#, 36CFR223.47, 36CFR223.112","Request ","FS-2400-9","6/6T, 13/13T",2729,0.005,{"v":13.645,"d":"14"},0.5,{"v":6.8225,"d":"6.8"},{"v":32.73,"d":"$32.73"},{"v":223.30042499999996,"d":"$223.30"}]
["Agree to different schedule for FS engineering services","C/CT5.213#, 36CFR223.112","Agreement","FS-2400-9","6/6T, 13/13T",2729,0.01,{"v":27.29,"d":"27"},0.5,{"v":13.645,"d":"13.6"},{"v":32.73,"d":"$32.73"},{"v":446.6008499999999,"d":"$446.60"}]
["Agree to alternative rock sources.","C/CT5.221#, 36CFR223.112","Agreement","FS-2400-9","6/6T, 13/13T",2729,0.01,{"v":27.29,"d":"27"},0.5,{"v":13.645,"d":"13.6"},{"v":32.73,"d":"$32.73"},{"v":446.6008499999999,"d":"$446.60"}]
["Agree to adjustments in road maintenance deposit rates.","C/CT5.32#, 36CFR223.112","Agreement","FS-2400-9","All but 2 & 4",2898,0.05,{"v":144.9,"d":"145"},0.5,{"v":72.45,"d":"72.5"},{"v":32.73,"d":"$32.73"},{"v":2371.2884999999997,"d":"$2,371.29"}]
["Agree to alternative deposit schedule for scaling serevices.","C6.816#","Plan","Optional FS-2400-67","3, 6, 13",818,0.015,{"v":12.27,"d":"12"},0.5,{"v":6.135,"d":"6.1"},{"v":32.73,"d":"$32.73"},{"v":200.79854999999998,"d":"$200.80"}]
["Upon request of Contracting Officer furnish all recods dealing with origin and disposition of included timber.","C/CT8.66# or C/CT8.66","Other","FS-2400-59","All but 2 west of 100th meridian",818,1,818,0.5,{"v":409,"d":"409.0"},{"v":24.86,"d":"$24.86"},{"v":10167.74,"d":"$10,167.74"}]
["Upon request furnish all records sufficient to verify eligibility and compliance with SBA program.","C/CT8.73","Other","None","3/3T, 6/6T ",2683,0.1,{"v":268.3,"d":"268"},0.5,{"v":134.15,"d":"134.2"},{"v":24.86,"d":"$24.86"},{"v":3334.969,"d":"$3,334.97"}]
["Submit annual report on disposition of timber for sales west of 100th meridian.  OMB 0596-0114","C/CT8.66, 16 U.S.C. 620, et seq.","Other","FS-2400-59 ","All west of 100th meridian",2032,1,2032,0.5,{"v":1016,"d":"1016.0"},{"v":24.86,"d":"$24.86"},{"v":25257.76,"d":"$25,257.76"}]
["Acknowledge receipt of inspection report including agreements contained therein- signature on FS completed form.",null,"Notice &/or Agreement","Regional Inspection Reports","All",3394,20,67880,0.1,{"v":6788,"d":"6788.0"},{"v":24.86,"d":"$24.86"},{"v":168749.68,"d":"$168,749.68"}]
["Request relief in designated disaster areas.","36CFR223.111, 36CFR223.112","Agreement","FS-2400-9,   FS-2400-10 or Letter","All",3394,0.003,{"v":10.182,"d":"10"},0.5,{"v":5.091,"d":"5.1"},{"v":32.73,"d":"$32.73"},{"v":166.62842999999998,"d":"$166.63"}]
["Limited liability agreement","Limited Liability Agreements","Agreement","FS-2400-New","All but 2 & 4",2898,0.01,{"v":28.98,"d":"29"},1,{"v":28.98,"d":"29.0"},{"v":32.73,"d":"$32.73"},{"v":948.5153999999999,"d":"$948.52"}]
["Do not total or avg data in Columns marked XXX ",{"$nulls":4},"XXX","XXX",{"$f":"SUM(H4:H94)","v":{"v":327473.4859999999,"d":"327,473"}},"XXX",{"$f":"SUM(J2:J94)","v":{"v":40071.31950000001,"d":"40071.3"}},"XXX",{"$f":"SUM(L2:L94)","v":{"v":1078540.2441550002,"d":"$1,078,540.24"}}]
[]
[]
["GS Hourly Wage Rates"]
["GS-12/5 $32.73"]
["GS-10/5 $24.86"]
["GS-09/5 $22.57"]

{"sheet":"Appendix B","index":2,"n_rows":94,"n_cols":8,"rows_kept":94,"merged":[[37,2,38,2],[37,3,38,3],[37,4,38,4],[37,5,38,5],[37,6,38,6],[37,7,38,7],[50,2,51,2],[50,3,51,3],[50,4,51,4],[50,5,51,5],[50,6,51,6],[50,7,51,7]]}
["Contract Provision","Title","Form","OMB Control #","Expires","Description of Collection Activity","FS Form Required","Electronic Submission Acceptable"]
["B/BT1.1","Sale Area Map","None","New",null,"Contractor requests a change of subdivision or payment unit.  CO authorizes change by letter and a revised Sale Area Map.","Yes","Yes"]
["B2.41","Adjustment for Volume Deficit","FS-2400-9","New",null,"Contractor requests an adjustment for a volume deficit.  Option only applies to a very limited number of contracts (<1%) that contain incompletely marked subdivisions.  FS prepares contract modification FS-2400-9 signed by both parties.","Yes","No"]
["B2.42","Adjustment for Excess Volume","FS-2400-9","New",null,"Contractor requests an adjustment for excess volume.  Option only applies to a very limited number of contracts (<1%) that contain incompletely marked subdivisions.  FS prepares contract modification FS-2400-9 signed by both parties.","Yes","No"]
["B/BT3.34","Emergency Rate Redetermination","FS-2400-9","New",null,"Contractor requests ERR.  FS performs and notifies contractor of results by letter.  If contractor accepts the new rates both parties sign a contract modification FS-2400-9 prepared by FS.","Yes","No"]
["B/BT3.41","Material not in A/AT2","FS-2400-9 or Letters","New",null,"Contractor requests to remove species or products not listed as included timber.  CO establishes rates and sends contractor a FS-2400-9, &/or letter.  Contractor signs & returns 2400-9 or sends letter accepting rates.","Yes","No"]
["B/BT4.218","Cooperative Deposits","FS-2400-16","New",null,"Contractor requests FS perform specific work.  FS estimates cost of work it is willing to assume.  If agreeable to contractor FS prepares a FS-2400-16 Cooperative Agreement form signed by both parties.","Yes","No"]
["B/BT4.22","Temporary Reduction in Downpayment","Letter","New",null,"Contractor may request a temporary reduction of downpayment when specified conditions occur.  CO approves by letter to contractor.  CO notifies contractor by letter and issues a bill when downpayment must be restored.","No","Yes"]
["B/BT4.23,         B4.24              BT4.24","Refund of Excess Cash,                                   Refund After Scaling Completed,                                   Refund After Final Charges for Released Timber","None","N/A",null,"Contractor may request a refund of excess cash.  FS believes this is exempt from PRA per § 1320.3(h)(1). ","No","Yes"]
["B/BT4.3","Payment Guaranteed by Bond or Deposited Securities","FS-6500-12","New",null,"To guarantee payment, contractor may furnish and maintain an acceptable surety bond or deposit negotiable securities.  This is provided as an alternative to paying cash in advance of cutting timber.","Yes","No"]
["B/BT4.31","Blanket Bond","FS-6500-12a","New",null,"To guarantee payment on multiple contracts, contractor may furnish an acceptable surety bond or deposit negotiable securities.  Once established, contractor may reallocate amounts to different sales by written notice which may be sent electronically.","Yes","No"]
["B/BT4.32","Letters of Credit for Payment Bond","None","New",null,"Contractor may use a letter of credit in lieu of a surety bond for payment bond purposes when approved by CO.  LOC's are prepared by banks on their letterhead and must conform to the criteria in FSH 6509.11k, section 82.33.   ","No","No"]
["B/BT5.1","Authorization","Inspection Report","New",null,"Contract requires the location and clearing width of all temporary roads to be agreed to in writing.  Generally documented in an inspection report prepared by FS and signed by contractor.","No","No"]
["B/BT5.21","Engineering","FS-2400-9","New",null,"In event FS is unable to complete road survey and design by designated date, Contractor can assume responsibility by a mutual greeement to modify contract.  ","Yes","No"]
["B/BT5.21","Schedule for specified road construction","Optional FS-2400-67","0596-0086","2013-06-30","Within 60 days of contract award, contractor is required to submit a schedule for specified road construction.  This is typically prepared and submitted as a part of the Plan of Operation for the contract.","No","Yes"]
["B/BT5.212","Construction Staking","FS-2400-16","New",null,"Contractor can request that FS perform construction staking through a co-operative agreement.  Reference B/BT4.218.","Yes","No"]
["B/BT5.22","Material Delivery","Optional FS-2400-67","0596-0086","2013-06-30","Within 60 days of contract award, contractor is required to submit a schedule for showing desired delivery dates for materials supplied by FS.  This is typically prepared and submitted as a part of the Plan of Operation.","No","Yes"]
["B/BT5.23","Use of Partially Constructed Roads","Letters","New",null,"Specified roads are required to be completed prior to hauling unless agreed otherwise.  Contractor can make a written request to use roads prior to completion.  CO can approve the request by a letter to the contractor.","No","Yes"]
["B/BT5.251","Variation in Quantities","FS-2400-9","New",null,"Contract provides for making cost adjustments when actual quantities vary by more than a prescribed amount from the estimated quantities.  FS determines the revised quantities and they are established by a mutual agreement to modify the contract. ","Yes","No"]
["B/BT5.252","Physical Change","FS-2400-9","New",null,"Contract provides for adjusting the specified road construction costs for a physical change such as a landslide.  FS determines the revised costs which are established by a mutual agreement to modify the contract.","Yes","No"]
["B/BT5.253","Design Change","FS-2400-9","New",null,"CO may order changes in the work to be performed and/or materials to be provided by contractor for reasons stated in the contract.  FS determines revised quantities and costs which are established by a contract modification.","Yes","No"]
["B/BT5.26","Alternate Facilities","FS-2400-9","New",null,"Contractor may request a change in roads for the removal of timber.  If CO determines the alternate roads are acceptable. FS determines the cost differences which are established by contract modification.","Yes","No"]
["B/BT5.27","Temporary Credit for Unamortized Specified Road Construction Cost","Letters","New",null,"Contractor may request a temporary credit for unamortized road construction costs when specified conditions are met.  The request and approval are done by letters.","No","Yes"]
["B/BT5.3","Road Maintenance","None","N/A",null,"When 2 or more commercial users are simultaneouslly using a road and FS is not requiring maintenance deposits, the commercial users are required to develop a maintance plan for approval by FS.  This rarely occurs (est. <10/yr).","No","No"]
["B/BT5.3","Agree to permit hauling prior to completing pre-haul maintenance.","Letters","New",null,"Unless agreed in writing contractor is required to complete prehaul maintance prior to hauling.  The request and approval are done by letters.","No","Yes"]
["B/BT5.3","Agree to revise road maintenance costs &/or deposits for alternate haul route.","FS-2400-9","New",null,"If contractor elects to use different roads than ones listed in the contract, the FS redetermines road maintenance deposit amounts which are established by contract modification.","Yes","No"]
["B/BT6.1","Designate representatives in writing.","Letter &/or Optional FS-2400-67","0596-0086","2013-06-30","Contractor must designate a representative authorized to receive notices regarding performance under the contract, & a field supervisor responsible for on-the-ground operations.  Done by letter or listing in Plan of Operations or Operating Schedule.","No","Yes"]
["B/BT6.2","Improvements","Letter or no charge permit","New",null,"Contractor can request written permission to establish a camp for personnel operating the contract.  Authorization is by letter or a no charge permit specifing any rules or regulations pertaining to the occupancy.","No","Yes"]
["B/BT6.23","Protection of Land Survey Monuments","None","New",null,"Contract requires contractor to protect known survey monuments.  Contractor is required to restore survey monuments it damages and record the survey in appropriate county records.","No","No"]
["B/BT6.24, C/CT6.24","Protection Measures Needed for Plants, Animals, Cultural Resources, and Cave Resources","Inspection Report","New",null,"Agree to alternative protection methods.  Generally documented as an agreement on an inspection report signed by both parties.","Yes","No"]
["BT6.3","Control of Operations","Email, FAX or Letter","New",null,"Contractor must request release of a payment unit.  Generally done by email or FAX.  Payment or payment guarantee required in advance of FS authorizing release for cutting.  ","No","Yes"]
["B/BT6.31","Operating Schedule","Optional FS-2400-67","0596-0086","2013-06-30","Before commencing operations contractor must provide a written annual Operating Schedule of anticipated major activities.  May be revised upon reasonable notice to FS.","No","Yes"]
["B/BT6.311","Plan of Operations","Optional FS-2400-67","0596-0086","2013-06-30","Within 60 days of award of a contract 2+ years in length, contractor must furnish FS with a written general plan setting planned periods for road construction, logging, slash disposal, erosion control & other significant contractual requirements.","No","Yes"]
["B/BT6.312  36CFR223.32","Provide annual plan of operation for road construction.","None","0596-0086","2013-06-30","For contracts with specified road construction, contractor must provide an annual supplement to the Plan of Operation including a schedule of proposed work.  Generally submitted as a part of the annual Operating Schedule.","No","Yes"]
["B/BT6.33","Safety","None","0596-0086","2013-06-30","Contract requires contractor and FS to agree to a specific Traffic Control Plan for each contract prior to starting operations.  Generally a component of the Plan of Operations or Operating Schedule.","No","Yes"]
["40 CFR 112, B/BT6.341","Prevention of Oil Spills","None","0596-0086","2013-06-30","Contractor must provide a Spill Prevention Control & Countermeasures Plan certified by a registered professional engineer when oil products storage exceeds specified amounts. One plan can cover multiple contracts. Most contracts don't need a plan","No","No"]
["B/BT6.35","Equipment Cleaning","Email or FAX","New",null,"Contractor must advise FS of cleaning measures & availability of equipment for inspection.  Contractor may request FS approval to clean equipment on NF land prior to movint to or through an area free of invasive species of concern.","No","Yes"]
["B/BT6.36 ","Acceptance of Work","Email, FAX or Letter","New",null,"Contractor must request in writing for FS to inspect work for final accpetance.  Requests may be for acceptance of reasonaable portions of Specified Roads, specific requirements in a payment unit/subdivision, or all contractual work.","No","Yes"]
["B/BT6.361","Acceptance of Specified Roads"]
["B/BT6.41","Felling and Bucking","Inspection Report","New",null,"Contractor may request alternative method(s) of felling.  Generally requested verbaly in the field and if approved is documented as an agreement on an inspection report prepared by FS and signed by contractor's representative.","No","No"]
["B/BT6.422","Landings and Skid Trails","Inspection Report","New",null,"Location of all landings, tractor roads, and skid trails must be agreed upon prior to their construction.  Generally documented on an inspection report form prepared by FS and signed by contractor.","No","No"]
["B/BT6.423","Skidding on Roads","Inspection Report or Letter","New",null,"By written agreement contractor may be authorized to skid logs on permanent roads.  Contractor's request may be verbal or in writing.  Agreement generally documented on an inspection report prepared by FS and signed by contractor's representative.","No","No"]
["B/BT6.424","Arches and Dozer Blades","Inspection Report or Letter","New",null,"By written agreement contractor may operate pull-type arches or dozer blades wider than C-frame width in partial cut units. Contractor's request may be verbal or written. Agreement generally documented on an inspection report prepared by FS.","No","No"]
["B6.841 & C6.841","Route of Haul","FS-2400-67 & Map","New",null,"As a part of the annual Operating Schedule, contractor must furnish a map showing the route of haul.  By written agreement other routes may be approved.  Contractor and FS must agree to locations for accountability checks.","No","No"]
["B/BT6.5","Streamcourse Protection","Inspection Report","New",null,"Contractor and FS may agree on alternative methods of protecting streamcourses.  Agreement generally documented on a sale inspection report prepared by FS and signed by Contractor's representative.","No","No"]
["B/BT6.61","Meadow Protection","Inspection Report","New",null,"Contractor and FS may agree on alternative methods of protecting meadows.  Agreement generally documented on a sale inspection report prepared by FS and signed by Contractor's representative.","No","No"]
["B/BT6.64","Landings","Inspection Report","New",null,"Contractor and FS may agree on alternative methods of controlling errosion on landings.  Agreement generally documented on a sale inspection report prepared by FS and signed by Contractor's representative.","No","No"]
["B/BT6.65","Skid Trails and Fire Lines","Inspection Report","New",null,"Contractor and FS may agree on alternative methods of controlling errosion on skid trails and fire lines.  Agreement generally documented on a sale inspection report prepared by FS and signed by Contractor's representative.","No","No"]
["B/BT6.66","Current Operating Areas","Inspection Report","New",null,"Contractor and FS may agree on alternative methods of controlling errosion before operations cease for the season.  Agreement generally documented on a sale inspection report prepared by FS and signed by Contractor's representative.","No","No"]
["B6.81","Request FS perform additional scaling services.","Letter & Agreement","New",null,"FS may provide additional scaling services upon written request of contractor.  Approval by agreement custom crafted to address terms & conditions.  ","No","No"]
["BT6.81 ","Product Identification","FS Load Receipts","New",null,"Contractor must complete FS provided removal receipts and attach one to each load of logs or products removed from the contract area.  Removal receipts are generally not used for tree measurement contracts in R8 & R9.  Est. 170,000 receipts/year.","Yes","No"]
["B6.84","Accountability  "]
["BT6.81, B6.842","Product Identification","Letter or Optional FS-2400-67","New",null,"East of 100th meridian FS routinely waives branding & painting requirements.  West of 100th meridian contractors may request a waiver of adjustment.  Such requests are generally by letter or a part of annual Operating Schedule.","No","Yes"]
["B6.811","Scaling Location","Letter & Agreement","New",null,"Upon written request of contractor and approval by CO, FS may provide scaling services at an alternative location.  Generally documented in a scaling site agreement jointly prepared and signed by both parties.","No","No"]
["B6.813","Delayed or Interrupted Scaling Services","Letter","New",null,"Contractor may request Contract Term Adjustment and/or out-of-pocket expenses when FS causes a delay or interruption of scaling services.  ","No","Yes"]
["B6.814","Weighing Services Agreement","Agreement","New",null,"A weighing services agreement must be prepared for each weighing facility providing weighing services.  Contractor may request additional weighing facilities.  FS prepares custom crafted agreement for Contractor's signature.","No","No"]
["B6.84","Accountability  ","Agreement","New",null,"When scaling is performed away from sale area contractor and FS enter into an accountability agreement.  FS prepares the agreement for contractor's signature.","No","No"]
["B/BT6.9","Records","None","0596-0017","2013-06-30","Upon request, contractor must provide access to appropriate annual records maintained in the normal course of business to enable FS to obtain & analyse operating cost & selling price data.  Contract does not require additional record keeping.","No","Yes"]
["B/BT7.1","Plans","None","0596-0086","2013-06-30","Prior to initiating operations during fire precautionary period, contractor must file with FS a Fire Prevention & Control Plan.  A single plan can be prepared for more than one contract.  Generally prepared concurrently with annual Operating Schedule.","No","Yes"]
["B/BT7.21","Agree to alternative fire precaution measures or equipment.","Letters or FS-2400-9","New",null,"Contract my request substitute fire prevention and control measures or equipment.  Contractor's request and FS approval generally done with letters but approval may be documented in a contract modification. ","No","No"]
["B/BT8.21, 36CFR223.46","Contract Term Adjustment","Letters or FS-2400-9","New",null,"Contractor may receive additional time if he was unable to operate for reasons stated in the contract. Contractor may request a term adjustment by providing documentation of the reasons for and amount of time lost. FS may approve by letter or FS-2400-9.","No","No"]
["B/BT8.211, 36CFR223.112","Delay in Reconstruction of Processing Facilities","Letters or FS-2400-9","New",null,"Contractor my request an additional 12 months contract term adjustment by demonstrating diligent performance in reconstructing processing facility.  FS may approve by letter of FS-2400-9.","No","No"]
["B/BT8.212, 36CFR223.52","Market-Related Contract term Adjustment. (MRCTA)","FS-2400-9 or FS-2400-10","0596-0212","2012-04-30","FS notifies contractor quarterly when contract is eligible to receive a MRCTA.  Contractor must request the additional time - usually by a letter that can be sent electronically.  Contractor may also be required to obtain consent of surety.","Yes","No"]
["B/BT8.22, 36CFR223.116","Termination by Purchaser","Letter","New",null,"Contractor may elect to terminate contract following Catastrophic Damage and other conditions specified in the contract by written notice to the FS.  Letter may be sent electronically.","No","Yes"]
["B/BT8.23 & B/BT8.231, 36CFR223.112, 36CFR225.115","Contract Term Extension","FS-2400-10","New",null,"Contractor may request a contract term extension under conditions specified in the contract.  The request is by letter that may be sent electronically and may require consent of surety.  Approval is via FS-2400-10.","Yes","No"]
["36CFR223.53, 36CFR223.112, B/BT8.3","Urgent Removal Extension (by rule, not a specific contract clause)","FS-2400-10","0596-0167","2012-11-30","Contractor may request in writing an extension to harvest non-National Forest system timber damaged by a qualifying catastrophic event.  Request must state why additional time is needed.  ","Yes","No"]
["B/BT8.31, 36CFR223.112","Changed Conditions","FS-2400-9 or FS-2400-10","New",null,"Contractor and FS may agree to eliminate certain work made unnecessary due to a physical change of conditions.  Action may be initiated by a notice from either party to the other.","Yes","No"]
["B/BT8.32, 36CFR223.112","Modification for Catastrophe.","FS-2400-9 or FS-2400-10","New",null,"Contract may be modified to reflect changes due to a catastrophic event.  Usually results in both deletions and additions to included timber.  Contractor and FS must agree to the changes including re-appraised  rates.  ","Yes","No"]
["B/BT8.33, 36CFR223.112, 36CFR223.113","Contract Suspension and Modification","FS-2400-9 or FS-2400-10","New",null,"FS may order a suspension or delay for environmental reasosn or by court order.  Contractor may request a variety of relief measures specified in contract if this occurs.  Request for relief must be in writing and supported by data provided by contractor.","Yes","No"]
["B/BT8.341 & B/BT8.342, 36CFR223.112","Termination by Forest Service & Termination by Purchaser","FS-2400-9 or FS-2400-10","New",null,"Contract allows FS to delete timber for environmental reasons. When this occurs both Party's may agree to modify contract to include replacement timber.","Yes","No"]
["B/BT8.341 & B/BT8.342, 36CFR223.112","Termination by Forest Service & Termination by Purchaser","FS-2400-9, 10 or Agreement","New",null,"Contract allows either party to initiate modification or termination of contract for reasons stated in B/BT8.33.  Modifications and cancellation agreements are custom crafted based on specific terms and conditions unique to each action.","Yes","No"]
["B/BT8.35, 36CFR223.40","Out-of-Pocket Expenses.","Agreement","New",null,"When FS orders a delay or interruption under B/BT8.33 contractor may submit a written claim for out-of-pocket expenses.  Claimed expenses must be documented.  Approved by agreement custom crafted to fit the specific conditions.","No","No"]
["B/BT8.36, 36CFR223.116","Termination for Market Change","Agreement","New",null,"When FS orders a delay under B/BT8.33 over 90 days in length during which timber values decrease more than the amount specified in the contract, contractor may request termination. Executed by agreement custom crafted to the specific conditions.  ","No","No"]
["B/BT8.4, 36CFR223.114","Performance by Other than Purchaser","FS-2400-12","New",null,"Contract may be acquired or assumed by another party when specific conditions are met and approved by FS.  Initiated by a request from contractor and documented on FS-2400-12 Third Party Agreement.","Yes","No"]
["B/BT8.63","Nondiscrimination in Employment","None","New",null,"For contracts with a value in excess of $10K, contractors must furnish information & reports under EO 11246 pertaining to nondiscrimination in employment.  ","No","Yes"]
["B/BT8.64","Debarment and Suspension Certification","AD-1047 and AD-1048",null,null,"Bidders submit certifications prior to contract award.  Certifications of subcontractors must be on file and provided if requested by FS.  Certification form is a part of FS-2400-14 (OMB 0596-0105).  Forms AD-1047 & AD-1048 may also be used.","No","No"]
["B/BT9.1, 36CFR223.35","Performance Bond","SF-25","9000-0045",null,"Contractors are required to provide a performance bond.  Consent of surety may be required when contract term is adjusted or extended by more than 1 year.","Yes","No"]
["B/BT9.11","Bond Reduction","SF-25","9000-0045",null,"Contractor may request a reduction in the bond to reflect remaining obligations.  ","Yes","No"]
["B/BT9.12","Letters of Credit  ","None","New",null,"Approved letters of credit may be used in lieu of a surety bond.  FSH 6509.11k lists the minimum requirements for a letter of credit.","No","No"]
["B/BT9.13","Temporary Bond Reduction","Letters","New",null,"Contractor may request a temporary reduction in performance bond when FS orders a delay under B/BT8.33.  Request is generally a letter from contractor which may be sent electronically.","No","Yes"]
["B/BT9.2","Disputes","Letter","New",null,"Contract is subject to Contract Disputes Act of 1978.  Contractor may submit written claim(s).  Claims for money in excess of $100k must include a certification of good faith and include supporting data.","No","No"]
["C/CT2.11#","Timber Subject to Agreement","Agreement","New",null,"Contractor may request the addition of timber subject to agreement.  Executed as an agreement custom crafted to fit the terms and conditions.","No","Yes"]
["C/CT4.212","Temporary Reduction of Downpayment","Letter",null,null,"This procedure was moved to B/BT4.22 in contracts dated 6/06 and later - refer to B/BT4.22 for details.","No","Yes"]
["C/CT5.12#, 36CFR223.112","Use of Roads by Purchaser","FS-2400-9 or FS-2400-10","New ",null,"Contractor may request a change in road use limitations.  If approved, executed as an agreement custom crafted to fit the terms and conditions.","No","No"]
["C/CT5.13#, 36CFR223.47","Road Completion Date","Optional FS-2400-67","0596-0086","2013-06-30","Road completion dates may be adjusted to confor to the approved Plan of Operations.  New date(s) are documented on oprional form FS-2400-67 or plan format of contrctor's choosing.","No","Yes"]
["C/CT5.13#, 36CFR223.47, 36CFR223.112","Request Rate Redetermination for FS delay in completing specified roads.","FS-2400-9","New",null,"Contractor may request a rate redetermination for timber if FS fails to complete roads within 1 year of the road completion date.  ","No","No"]
["C/CT5.213#, 36CFR223.112","Deposit for Reconstruction Engineering Services","FS-2400-9","New",null,"Contractor and FS may agree on a different deposit schedule.  If approved, executed as an agreement custom crafted to fit the terms and conditions.","No","No"]
["C/CT5.221#, 36CFR223.112","Material Sources","FS-2400-9","New",null,"Contractor may request to provide rock from alternative sources.  If approved, executed as an agreement custom crafted to fit the terms and conditions.","No","No"]
["C/CT5.32#, 36CFR223.112","Road Maintenance Deposit Schedule","FS-2400-9","New",null,"Contractor may request an adjustment in the road maintenance deposit schedule.  If approved, executed as an agreement custom crafted to fit the terms and conditions.","No","No"]
["C6.816#","Scaling Deposits","FS-2400-67  ","0596-0086","2013-06-30","By agreement and pursuant to Plan of Operation, and Operating Schedule, when deposits for scaling services are to be paid may be adjusted.  If approved, executed as an agreement custom crafted to fit the terms and conditions. ","No","Yes"]
["C/CT8.73","Requirement for Small Business Processing","None","0596-0066","2013-04-30","Requires contractor to submit records sufficient to verify compliance with SBA requirements for set-aside sales.  Collection of this information is authorized under OMB 0596-0066.","No","No"]
[null,"Acknowledge receipt of inspection report - signature on FS completed form.","Regional Forms","New",null,"Each time FS inspects contract operations it prepares an inspection report documenting findings, agreements and acceptance of work.  Contractor's representative acknowledges receipt and acceptance of agreements by signing the report.","Yes","Depends"]
["36CFR223.111, 36CFR223.112","Request relief in designated disaster areas.","Letter","New",null,"Contractor may request relief pursuant to relief under section 242 (a), (b) & (c) of the Disaster Relief Act of 1970.","No","Yes"]
["None","Liability Agreements & Waivers","Agreement","New",null,"Liability agreements & waivers are custom crafted to augment certain agreements and contract modifications. They limit or waive the rights of each party to file claims pertaining to specific agreements & modifications entered into by mutual agreement.  ","No","No"]